fUSD/lending_fUSD_20250204
["ID","MTS","AMOUNT","RATE_DAILY","PERIOD"]
[351651049,1738685437128,-500.0,0.00010017,2]
[351651050,1738685437139,-500.0,0.00010017,2]
[351651051,1738685437149,-500.0,0.00010017,2]
[351651052,1738685437158,-500.0,0.00010017,2]
[351651053,1738685437167,-278.66,0.00010018,2]
[351651054,1738685437177,-500.0,0.00010018,2]
[351651055,1738685437187,-500.0,0.00010018,2]
[351651056,1738685437197,-500.0,0.00010018,2]
[351651057,1738685437207,-541.29,0.00010018,2]
[351651058,1738685437216,-500.0,0.00010018,2]
[351651059,1738685437225,-154.837627,0.00010018,2]
[351651060,1738685437235,-326.75,0.00010018,2]
[351651061,1738685437244,-152.933321,0.00010018,2]
[351651062,1738685437255,-500.0,0.00010018,2]
[351651063,1738685437264,-500.0,0.00010018,2]
[351651064,1738685437275,-500.0,0.00010018,2]
[351651065,1738685437284,-10.22140814,0.00010018,2]
[351651066,1738685437296,-489.77859186,0.00010018,2]
[351651067,1738685437306,-202.78408684,0.00010018,2]
[351651068,1738685437318,-25.81225587,0.00010018,2]
[351651069,1738685437327,-500.0,0.00010018,2]
[351651070,1738685437335,-163.36,0.00010018,2]
[351651071,1738685437344,-310.82774413,0.00010018,2]
[351651079,1738685437639,-189.17225587,0.00010018,2]
[351651080,1738685437648,-223.6343834,0.00010018,2]
[351651081,1738685437660,-311.30883826,0.00010018,2]
[351651082,1738685437674,-500.0,0.00010018,2]
[351651083,1738685437683,-500.0,0.00010018,2]
[351651084,1738685437693,-500.0,0.00010018,2]
[351651085,1738685437702,-500.0,0.00010018,2]
[351651086,1738685437712,-500.0,0.00010018,2]
[351651087,1738685437722,-500.0,0.00010018,2]
[351651088,1738685437732,-500.0,0.00010018,2]
[351651089,1738685437741,-500.0,0.00010018,2]
[351651090,1738685437750,-500.0,0.00010018,2]
[351651091,1738685437760,-500.0,0.00010018,2]
[351651092,1738685437769,-500.0,0.00010018,2]
[351651093,1738685437779,-198.15,0.00010018,2]
[351651094,1738685437788,-1000.0,0.00010018,2]
[351651095,1738685437798,-500.0,0.00010018,2]
[351651096,1738685437807,-1173.15,0.00010018,2]
[351651097,1738685437817,-500.0,0.00010018,2]
[351651098,1738685437827,-500.0,0.00010018,2]
[351651099,1738685437837,-500.0,0.00010018,2]
[351651100,1738685437847,-500.0,0.00010018,2]
[351651101,1738685437856,-500.0,0.00010018,2]
[351651102,1738685437866,-500.0,0.00010018,2]
[351651103,1738685437875,-500.0,0.00010018,2]
[351651104,1738685437885,-500.0,0.00010018,2]
[351651105,1738685437895,-500.0,0.00010018,2]
[351651106,1738685437904,-500.0,0.00010018,2]
[351651107,1738685437914,-500.0,0.00010018,2]
[351651108,1738685437925,-500.0,0.00010018,2]
[351651109,1738685437934,-500.0,0.00010018,2]
[351651110,1738685437944,-500.0,0.00010018,2]
[351651111,1738685437954,-521.76447085,0.00010018,2]
[351651112,1738685437964,-500.0,0.00010018,2]
[351651113,1738685437973,-500.0,0.00010018,2]
[351651114,1738685437983,-663.96,0.00010018,2]
[351651115,1738685437992,-500.0,0.00010018,2]
[351651116,1738685438002,-500.0,0.00010018,2]
[351651117,1738685438012,-500.0,0.00010018,2]
[351651119,1738685438022,-500.0,0.00010018,2]
[351651120,1738685438032,-404.4,0.00010018,2]
[351651121,1738685438041,-500.0,0.00010018,2]
[351651122,1738685438052,-474.97770571,0.00010018,2]
[351651123,1738685438063,-500.0,0.00010018,2]
[351651124,1738685438072,-500.0,0.00010018,2]
[351651125,1738685438082,-500.0,0.00010018,2]
[351651126,1738685438092,-500.0,0.00010018,2]
[351651127,1738685438101,-500.0,0.00010018,2]
[351651128,1738685438111,-500.0,0.00010018,2]
[351651130,1738685438121,-640.39,0.00010018,2]
[351651131,1738685438130,-500.0,0.00010018,2]
[351651133,1738685438141,-500.0,0.00010018,2]
[351651135,1738685438151,-500.0,0.00010018,2]
[351651137,1738685438159,-500.0,0.00010018,2]
[351651138,1738685438172,-500.0,0.00010018,2]
[351651139,1738685438182,-500.0,0.00010018,2]
[351651140,1738685438191,-500.0,0.00010018,2]
[351651141,1738685438201,-500.0,0.00010018,2]
[351651142,1738685438210,-500.0,0.00010018,2]
[351651143,1738685438220,-570.54,0.00010018,2]
[351651144,1738685438230,-612.43,0.00010018,2]
[351651145,1738685438239,-500.0,0.00010018,2]
[351651146,1738685438249,-500.0,0.00010018,2]
[351651147,1738685438258,-500.0,0.00010018,2]
[351651148,1738685438268,-500.0,0.00010018,2]
[351651149,1738685438278,-500.0,0.00010018,2]
[351651150,1738685438288,-500.0,0.00010018,2]
[351651151,1738685438299,-500.0,0.00010018,2]
[351651152,1738685438309,-500.0,0.00010018,2]
[351651153,1738685438319,-650.21,0.00010018,2]
[351651154,1738685438328,-718.12,0.00010018,2]
[351651155,1738685438338,-585.02,0.00010018,2]
[351651156,1738685438348,-500.0,0.00010018,2]
[351651157,1738685438357,-500.0,0.00010018,2]
[351651158,1738685438367,-500.0,0.00010018,2]
[351651159,1738685438376,-500.0,0.00010018,2]
[351651160,1738685438386,-500.0,0.00010018,2]
[351651161,1738685438395,-553.29,0.00010018,2]
[351651162,1738685438404,-500.0,0.00010018,2]
[351651163,1738685438414,-1329.16,0.00010018,2]
[351651164,1738685438425,-500.0,0.00010018,2]
[351651165,1738685438435,-500.0,0.00010018,2]
[351651166,1738685438444,-649.45,0.00010018,2]
[351651167,1738685438453,-500.0,0.00010018,2]
[351651168,1738685438462,-500.0,0.00010018,2]
[351651169,1738685438472,-789.07,0.00010018,2]
[351651170,1738685438482,-500.0,0.00010018,2]
[351651171,1738685438491,-500.0,0.00010018,2]
[351651172,1738685438501,-500.0,0.00010018,2]
[351651173,1738685438510,-500.0,0.00010018,2]
[351651174,1738685438520,-500.0,0.00010018,2]
[351651175,1738685438530,-891.45,0.00010018,2]
[351651176,1738685438540,-500.0,0.00010018,2]
[351651177,1738685438550,-500.0,0.00010018,2]
[351651178,1738685438560,-500.0,0.00010018,2]
[351651179,1738685438569,-500.0,0.00010018,2]
[351651180,1738685438579,-262.35,0.00010018,2]
[351651181,1738685438589,-500.0,0.00010018,2]
[351651182,1738685438601,-500.0,0.00010019,2]
[351651183,1738685438610,-288.71,0.00010019,2]
[351651184,1738685438619,-283.26,0.00010019,2]
[351651185,1738685438629,-277.35,0.00010019,2]
[351651186,1738685438639,-276.52,0.00010019,2]
[351651187,1738685438649,-282.02,0.00010019,2]
[351651188,1738685438659,-500.0,0.00010019,2]
[351651189,1738685438668,-320.15,0.00010019,2]
[351651190,1738685438679,-500.0,0.00010019,2]
[351651191,1738685438689,-314.86,0.00010019,2]
[351651192,1738685438698,-356.96,0.00010019,2]
[351651193,1738685438708,-460.97,0.00010019,2]
[351651194,1738685438718,-500.0,0.00010019,2]
[351651195,1738685438727,-500.0,0.00010019,2]
[351651196,1738685438737,-500.0,0.00010019,2]
[351651197,1738685438746,-500.0,0.00010019,2]
[351651198,1738685438755,-500.0,0.00010019,2]
[351651199,1738685438765,-500.0,0.00010019,2]
[351651200,1738685438775,-277.0314991,0.00010019,2]
[351651201,1738685438784,-500.0,0.00010019,2]
[351651202,1738685438793,-500.0,0.00010019,2]
[351651203,1738685438803,-500.0,0.00010019,2]
[351651204,1738685438812,-517.69,0.00010019,2]
[351651205,1738685438822,-500.0,0.00010019,2]
[351651206,1738685438831,-500.0,0.00010019,2]
[351651207,1738685438842,-500.0,0.00010019,2]
[351651208,1738685438852,-500.0,0.00010019,2]
[351651209,1738685438862,-500.0,0.00010019,2]
[351651210,1738685438871,-523.01,0.00010019,2]
[351651211,1738685438881,-243.8,0.00010019,2]
[351651212,1738685438891,-421.43,0.00010019,2]
[351651213,1738685438902,-500.0,0.00010019,2]
[351651214,1738685438912,-198.18,0.00010019,2]
[351651215,1738685438924,-500.0,0.00010019,2]
[351651216,1738685438934,-602.89,0.00010019,2]
[351651217,1738685438943,-500.0,0.00010019,2]
[351651218,1738685438954,-500.0,0.00010019,2]
[351651219,1738685438963,-318.16,0.00010019,2]
[351651220,1738685438973,-500.0,0.00010019,2]
[351651221,1738685438982,-500.0,0.00010019,2]
[351651222,1738685438991,-500.0,0.00010019,2]
[351651223,1738685439000,-500.0,0.00010019,2]
[351651224,1738685439010,-500.0,0.00010019,2]
[351651225,1738685439019,-397.8020346,0.00010019,2]
[351651226,1738685439030,-500.0,0.00010019,2]
[351651227,1738685439039,-500.0,0.00010019,2]
[351651228,1738685439049,-500.0,0.00010019,2]
[351651229,1738685439060,-1504.45448426,0.00010055,2]
[351651230,1738685439070,-188.3,0.00010137,2]
[351651231,1738685439080,-150.0,0.00010149,2]
[351651232,1738685439089,-500.0,0.00010154,2]
[351651233,1738685439099,-500.0,0.00010154,2]
[351651234,1738685439108,-500.0,0.00010154,2]
[351651235,1738685439118,-500.0,0.00010154,2]
[351651236,1738685439128,-500.0,0.00010154,2]
[351651237,1738685439137,-500.0,0.00010154,2]
[351651238,1738685439147,-500.0,0.00010154,2]
[351651239,1738685439158,-712.38,0.00010154,2]
[351651240,1738685439167,-500.0,0.00010154,2]
[351651241,1738685439181,-494.57,0.00010154,2]
[351651242,1738685439191,-500.0,0.00010154,2]
[351651243,1738685439200,-500.0,0.00010154,2]
[351651244,1738685439210,-500.0,0.00010154,2]
[351651245,1738685439220,-500.0,0.00010155,2]
[351651246,1738685439229,-500.0,0.00010155,2]
[351651247,1738685439239,-500.0,0.00010155,2]
[351651248,1738685439248,-154.837627,0.00010155,2]
[351651249,1738685439258,-152.933321,0.00010155,2]
[351651250,1738685439268,-500.0,0.00010155,2]
[351651251,1738685439278,-500.0,0.00010155,2]
[351651252,1738685439287,-500.0,0.00010155,2]
[351651253,1738685439297,-500.0,0.00010155,2]
[351651254,1738685439307,-500.0,0.00010155,2]
[351651255,1738685439316,-500.0,0.00010155,2]
[351651256,1738685439326,-500.0,0.00010155,2]
[351651257,1738685439336,-500.0,0.00010155,2]
[351651258,1738685439346,-500.0,0.00010155,2]
[351651259,1738685439357,-500.0,0.00010155,2]
[351651260,1738685439368,-500.0,0.00010155,2]
[351651261,1738685439378,-500.0,0.00010155,2]
[351651263,1738685439388,-500.0,0.00010155,2]
[351651264,1738685439399,-182.58,0.00010155,2]
[351651265,1738685439408,-500.0,0.00010155,2]
[351651266,1738685439419,-1173.15,0.00010155,2]
[351651267,1738685439433,-500.0,0.00010155,2]
[351651268,1738685439443,-500.0,0.00010155,2]
[351651269,1738685439453,-500.0,0.00010155,2]
[351651270,1738685439463,-500.0,0.00010155,2]
[351651271,1738685439472,-500.0,0.00010155,2]
[351651272,1738685439482,-500.0,0.00010155,2]
[351651273,1738685439492,-500.0,0.00010155,2]
[351651274,1738685439501,-500.0,0.00010155,2]
[351651275,1738685439511,-500.0,0.00010155,2]
[351651276,1738685439520,-500.0,0.00010155,2]
[351651277,1738685439530,-500.0,0.00010155,2]
[351651279,1738685439540,-500.0,0.00010155,2]
[351651280,1738685439550,-663.96,0.00010155,2]
[351651281,1738685439559,-500.0,0.00010155,2]
[351651282,1738685439569,-205.16,0.00010155,2]
[351651284,1738685439580,-500.0,0.00010155,2]
[351651285,1738685439768,-620.44907289,0.00010155,2]
[351651286,1738685439779,-500.0,0.00010155,2]
[351651287,1738685439789,-267.56,0.00010155,2]
[351651288,1738685439799,-500.0,0.00010155,2]
[351651289,1738685439808,-500.0,0.00010155,2]
[351651290,1738685439817,-500.0,0.00010155,2]
[351651291,1738685439827,-500.0,0.00010155,2]
[351651292,1738685439837,-531.92,0.00010155,2]
[351651293,1738685439847,-500.0,0.00010155,2]
[351651294,1738685439857,-500.0,0.00010155,2]
[351651295,1738685439867,-500.0,0.00010155,2]
[351651296,1738685439888,-500.0,0.00010155,2]
[351651297,1738685439900,-500.0,0.00010155,2]
[351651298,1738685439910,-500.0,0.00010155,2]
[351651299,1738685439923,-570.54,0.00010155,2]
[351651300,1738685439934,-612.43,0.00010155,2]
[351651301,1738685439944,-500.0,0.00010155,2]
[351651302,1738685439957,-500.0,0.00010155,2]
[351651303,1738685439968,-500.0,0.00010155,2]
[351651304,1738685439978,-500.0,0.00010155,2]
[351651305,1738685439989,-500.0,0.00010155,2]
[351651306,1738685440000,-650.21,0.00010155,2]
[351651307,1738685440011,-718.12,0.00010155,2]
[351651308,1738685440021,-585.02,0.00010155,2]
[351651309,1738685440031,-500.0,0.00010155,2]
[351651310,1738685440041,-500.0,0.00010155,2]
[351651311,1738685440053,-500.0,0.00010155,2]
[351651312,1738685440064,-500.0,0.00010155,2]
[351651313,1738685440075,-500.0,0.00010155,2]
[351651314,1738685440085,-553.29,0.00010155,2]
[351651315,1738685440096,-500.0,0.00010155,2]
[351651316,1738685440106,-1329.16,0.00010155,2]
[351651317,1738685440116,-500.0,0.00010155,2]
[351651318,1738685440126,-500.0,0.00010155,2]
[351651319,1738685440136,-649.45,0.00010155,2]
[351651320,1738685440147,-500.0,0.00010155,2]
[351651321,1738685440158,-500.0,0.00010155,2]
[351651322,1738685440169,-789.07,0.00010155,2]
[351651323,1738685440180,-500.0,0.00010155,2]
[351651324,1738685440191,-500.0,0.00010155,2]
[351651325,1738685440201,-500.0,0.00010155,2]
[351651326,1738685440211,-500.0,0.00010155,2]
[351651327,1738685440221,-891.45,0.00010155,2]
[351651328,1738685440231,-500.0,0.00010155,2]
[351651329,1738685440241,-500.0,0.00010155,2]
[351651330,1738685440250,-500.0,0.00010155,2]
[351651331,1738685440261,-500.0,0.00010155,2]
[351651332,1738685440271,-500.0,0.00010155,2]
[351651333,1738685440281,-500.0,0.00010156,2]
[351651334,1738685440291,-500.0,0.00010156,2]
[351651335,1738685440302,-500.0,0.00010156,2]
[351651336,1738685440312,-500.0,0.00010156,2]
[351651337,1738685440322,-500.0,0.00010156,2]
[351651338,1738685440333,-500.0,0.00010156,2]
[351651339,1738685440343,-500.0,0.00010156,2]
[351651340,1738685440353,-500.0,0.00010156,2]
[351651341,1738685440363,-500.0,0.00010156,2]
[351651342,1738685440374,-500.0,0.00010156,2]
[351651343,1738685440383,-500.0,0.00010156,2]
[351651344,1738685440393,-517.69,0.00010156,2]
[351651345,1738685440403,-500.0,0.00010156,2]
[351651346,1738685440412,-500.0,0.00010156,2]
[351651347,1738685440425,-120.75847506,0.00010156,2]
[351651348,1738685440455,-379.24152494,0.00010156,2]
[351651349,1738685440465,-500.0,0.00010156,2]
[351651350,1738685440475,-500.0,0.00010156,2]
[351651351,1738685440486,-295.32418714,0.00010156,2]
[351651352,1738685440496,-592.48,0.00010156,2]
[351651353,1738685440505,-333.84290513,0.00010156,2]
[351651354,1738685440516,-166.15709487,0.00010156,2]
[351651355,1738685440525,-588.6,0.00010156,2]
[351651356,1738685440535,-338.05,0.00010156,2]
[351651357,1738685440545,-500.0,0.00010156,2]
[351651358,1738685440554,-226.75,0.00010156,2]
[351651359,1738685440564,-500.0,0.00010156,2]
[351651360,1738685440574,-373.52,0.00010157,2]
[351651361,1738685440585,-648.90478637,0.00010187,2]
[351651362,1738685440598,-753.30203135,0.00010187,2]
[351651363,1738685440610,-102.24766641,0.00010187,2]
[351651364,1738685440620,-224.82,0.00010213,2]
[351651365,1738685440630,-500.0,0.00010291,2]
[351651366,1738685440642,-500.0,0.00010291,2]
[351651367,1738685440652,-500.0,0.00010291,2]
[351651368,1738685440662,-500.0,0.00010291,2]
[351651369,1738685440674,-500.0,0.00010291,2]
[351651370,1738685440689,-500.0,0.00010291,2]
[351651371,1738685440699,-500.0,0.00010291,2]
[351651372,1738685440708,-712.38,0.00010291,2]
[351651373,1738685440718,-500.0,0.00010291,2]
[351651374,1738685440727,-500.0,0.00010291,2]
[351651375,1738685440737,-500.0,0.00010291,2]
[351651376,1738685440747,-500.0,0.00010291,2]
[351651377,1738685440757,-500.0,0.00010292,2]
[351651378,1738685440767,-500.0,0.00010292,2]
[351651379,1738685440778,-500.0,0.00010292,2]
[351651380,1738685440788,-500.0,0.00010292,2]
[351651381,1738685440797,-500.0,0.00010292,2]
[351651382,1738685440807,-500.0,0.00010292,2]
[351651383,1738685440816,-500.0,0.00010292,2]
[351651384,1738685440828,-500.0,0.00010292,2]
[351651385,1738685440838,-500.0,0.00010292,2]
[351651386,1738685440847,-500.0,0.00010292,2]
[351651387,1738685440857,-500.0,0.00010292,2]
[351651388,1738685440869,-500.0,0.00010292,2]
[351651389,1738685440881,-500.0,0.00010292,2]
[351651390,1738685440891,-360.46,0.00010292,2]
[351651391,1738685440900,-500.0,0.00010292,2]
[351651392,1738685440910,-1173.15,0.00010292,2]
[351651393,1738685440921,-500.0,0.00010292,2]
[351651394,1738685440931,-500.0,0.00010292,2]
[351651395,1738685440941,-262.46,0.00010292,2]
[351651396,1738685440951,-500.0,0.00010292,2]
[351651397,1738685440961,-500.0,0.00010292,2]
[351651398,1738685440970,-451.05807606,0.00010292,2]
[351651399,1738685440980,-500.0,0.00010292,2]
[351651400,1738685440989,-500.0,0.00010292,2]
[351651401,1738685440999,-500.0,0.00010292,2]
[351651402,1738685441008,-500.0,0.00010292,2]
[351651403,1738685441018,-500.0,0.00010292,2]
[351651404,1738685441028,-663.96,0.00010292,2]
[351651405,1738685441037,-429.12,0.00010292,2]
[351651406,1738685441047,-500.0,0.00010292,2]
[351651407,1738685441058,-500.0,0.00010292,2]
[351651408,1738685441069,-500.0,0.00010292,2]
[351651409,1738685441079,-500.0,0.00010292,2]
[351651410,1738685441088,-500.0,0.00010292,2]
[351651411,1738685441099,-500.0,0.00010292,2]
[351651412,1738685441109,-277.03,0.00010292,2]
[351651413,1738685441119,-500.0,0.00010292,2]
[351651414,1738685441128,-500.0,0.00010292,2]
[351651415,1738685441138,-500.0,0.00010292,2]
[351651416,1738685441148,-500.0,0.00010292,2]
[351651417,1738685441157,-570.54,0.00010292,2]
[351651418,1738685441167,-612.43,0.00010292,2]
[351651419,1738685441179,-500.0,0.00010292,2]
[351651420,1738685441189,-500.0,0.00010292,2]
[351651421,1738685441199,-500.0,0.00010292,2]
[351651422,1738685441208,-500.0,0.00010292,2]
[351651423,1738685441218,-500.0,0.00010292,2]
[351651424,1738685441228,-650.21,0.00010292,2]
[351651425,1738685441237,-718.12,0.00010292,2]
[351651426,1738685441247,-585.02,0.00010292,2]
[351651427,1738685441256,-500.0,0.00010292,2]
[351651428,1738685441266,-500.0,0.00010292,2]
[351651429,1738685441275,-500.0,0.00010292,2]
[351651430,1738685441285,-500.0,0.00010292,2]
[351651431,1738685441294,-500.0,0.00010292,2]
[351651432,1738685441303,-553.29,0.00010292,2]
[351651433,1738685441313,-500.0,0.00010292,2]
[351651434,1738685441322,-1329.16,0.00010292,2]
[351651435,1738685441332,-500.0,0.00010292,2]
[351651436,1738685441342,-500.0,0.00010292,2]
[351651437,1738685441352,-649.45,0.00010292,2]
[351651438,1738685441362,-500.0,0.00010292,2]
[351651439,1738685441372,-500.0,0.00010292,2]
[351651440,1738685441382,-789.07,0.00010292,2]
[351651441,1738685441391,-316.5,0.00010292,2]
[351651442,1738685441401,-500.0,0.00010292,2]
[351651443,1738685441411,-500.0,0.00010292,2]
[351651444,1738685441422,-891.45,0.00010292,2]
[351651445,1738685441432,-500.0,0.00010292,2]
[351651446,1738685441442,-500.0,0.00010292,2]
[351651447,1738685441451,-500.0,0.00010292,2]
[351651448,1738685441461,-500.0,0.00010292,2]
[351651449,1738685441470,-500.0,0.00010293,2]
[351651450,1738685441481,-500.0,0.00010293,2]
[351651451,1738685441491,-500.0,0.00010293,2]
[351651452,1738685441501,-500.0,0.00010293,2]
[351651453,1738685441511,-500.0,0.00010293,2]
[351651454,1738685441520,-500.0,0.00010293,2]
[351651455,1738685441530,-500.0,0.00010293,2]
[351651456,1738685441541,-500.0,0.00010293,2]
[351651457,1738685441551,-239.0,0.00010293,2]
[351651458,1738685441561,-253.30203135,0.00010293,2]
[351651459,1738685441570,-350.23422055,0.00010293,2]
[351651460,1738685441656,-167.45577945,0.00010293,2]
[351651461,1738685441667,-500.0,0.00010293,2]
[351651462,1738685441679,-500.0,0.00010293,2]
[351651463,1738685441699,-173.11309895,0.00010293,2]
[351651464,1738685441711,-413.65690105,0.00010293,2]
[351651465,1738685441721,-242.48309895,0.00010293,2]
[351651466,1738685441733,-6.78690105,0.00010293,2]
[351651467,1738685441742,-500.0,0.00010293,2]
[351651468,1738685441751,-604.9179654,0.00010293,2]
[351651469,1738685441761,-500.0,0.00010293,2]
[351651470,1738685441771,-1504.45448413,0.00010319,2]
[351651471,1738685441780,-814.45003072,0.00010382,2]
[351651472,1738685441840,-663.05996928,0.00010382,2]
[351651473,1738685441850,-500.0,0.00010428,2]
[351651474,1738685441859,-500.0,0.00010428,2]
[351651475,1738685441871,-500.0,0.00010428,2]
[351651476,1738685441881,-500.0,0.00010428,2]
[351651477,1738685441891,-500.0,0.00010428,2]
[351651478,1738685441901,-500.0,0.00010428,2]
[351651479,1738685441912,-712.38,0.00010428,2]
[351651480,1738685441924,-500.0,0.00010428,2]
[351651481,1738685441934,-500.0,0.00010428,2]
[351651482,1738685441944,-500.0,0.00010428,2]
[351651483,1738685441954,-500.0,0.00010428,2]
[351651484,1738685441964,-500.0,0.00010429,2]
[351651485,1738685441976,-500.0,0.00010429,2]
[351651486,1738685441986,-154.837627,0.00010429,2]
[351651487,1738685441995,-152.933321,0.00010429,2]
[351651488,1738685442005,-500.0,0.00010429,2]
[351651489,1738685442015,-500.0,0.00010429,2]
[351651490,1738685442024,-500.0,0.00010429,2]
[351651491,1738685442034,-500.0,0.00010429,2]
[351651492,1738685442044,-500.0,0.00010429,2]
[351651493,1738685442055,-500.0,0.00010429,2]
[351651494,1738685442066,-500.0,0.00010429,2]
[351651495,1738685442075,-500.0,0.00010429,2]
[351651496,1738685442085,-500.0,0.00010429,2]
[351651497,1738685442094,-500.0,0.00010429,2]
[351651498,1738685442103,-500.0,0.00010429,2]
[351651499,1738685442113,-1173.15,0.00010429,2]
[351651500,1738685442123,-500.0,0.00010429,2]
[351651501,1738685442132,-500.0,0.00010429,2]
[351651502,1738685442141,-500.0,0.00010429,2]
[351651503,1738685442150,-500.0,0.00010429,2]
[351651504,1738685442159,-500.0,0.00010429,2]
[351651505,1738685442168,-500.0,0.00010429,2]
[351651506,1738685442179,-500.0,0.00010429,2]
[351651507,1738685442189,-500.0,0.00010429,2]
[351651508,1738685442262,-500.0,0.00010429,2]
[351651509,1738685442272,-663.96,0.00010429,2]
[351651510,1738685442282,-500.0,0.00010429,2]
[351651511,1738685442291,-500.0,0.00010429,2]
[351651512,1738685442301,-500.0,0.00010429,2]
[351651513,1738685442311,-500.0,0.00010429,2]
[351651514,1738685442320,-500.0,0.00010429,2]
[351651515,1738685442329,-500.0,0.00010429,2]
[351651516,1738685442339,-500.0,0.00010429,2]
[351651517,1738685442348,-500.0,0.00010429,2]
[351651518,1738685442358,-500.0,0.00010429,2]
[351651519,1738685442367,-500.0,0.00010429,2]
[351651520,1738685442376,-570.54,0.00010429,2]
[351651521,1738685442385,-612.43,0.00010429,2]
[351651522,1738685442395,-500.0,0.00010429,2]
[351651523,1738685442404,-500.0,0.00010429,2]
[351651524,1738685442413,-500.0,0.00010429,2]
[351651525,1738685442423,-500.0,0.00010429,2]
[351651526,1738685442433,-500.0,0.00010429,2]
[351651527,1738685442443,-650.21,0.00010429,2]
[351651528,1738685442452,-718.12,0.00010429,2]
[351651529,1738685442461,-585.02,0.00010429,2]
[351651530,1738685442471,-500.0,0.00010429,2]
[351651532,1738685442482,-500.0,0.00010429,2]
[351651535,1738685442492,-500.0,0.00010429,2]
[351651537,1738685442503,-500.0,0.00010429,2]
[351651539,1738685442513,-500.0,0.00010429,2]
[351651542,1738685442523,-553.29,0.00010429,2]
[351651544,1738685442533,-500.0,0.00010429,2]
[351651546,1738685442543,-1329.16,0.00010429,2]
[351651548,1738685442552,-500.0,0.00010429,2]
[351651550,1738685442561,-500.0,0.00010429,2]
[351651552,1738685442570,-649.45,0.00010429,2]
[351651554,1738685442581,-500.0,0.00010429,2]
[351651555,1738685442594,-500.0,0.00010429,2]
[351651557,1738685442603,-789.07,0.00010429,2]
[351651559,1738685442612,-500.0,0.00010429,2]
[351651561,1738685442621,-500.0,0.00010429,2]
[351651563,1738685442632,-891.45,0.00010429,2]
[351651564,1738685442641,-500.0,0.00010429,2]
[351651565,1738685442650,-500.0,0.00010429,2]
[351651566,1738685442662,-500.0,0.00010429,2]
[351651567,1738685442674,-500.0,0.00010429,2]
[351651568,1738685442683,-536.17,0.0001043,2]
[351651569,1738685442692,-158.98950777,0.0001043,2]
[351651570,1738685442703,-500.0,0.0001043,2]
[351651571,1738685442712,-500.0,0.0001043,2]
[351651572,1738685442721,-500.0,0.0001043,2]
[351651573,1738685442732,-500.0,0.0001043,2]
[351651574,1738685442742,-500.0,0.0001043,2]
[351651575,1738685442751,-500.0,0.0001043,2]
[351651576,1738685442761,-517.69,0.0001043,2]
[351651577,1738685442770,-228.69,0.0001043,2]
[351651578,1738685442779,-500.0,0.0001043,2]
[351651579,1738685442788,-500.0,0.0001043,2]
[351651580,1738685442798,-500.0,0.0001043,2]